Workbook

Sheet Menu
R9: versie 1.5
R10: juni 2019
C11: Kenmerk: | P11: Aantal criteria kwaliteit: | Q11: =+'Definitie Criteria'!P15 -> 0
C12: Naam: | P12: Prijscriterium actief: | Q12: =+xPrijscriterium -> 0

Sheet Disclaimer
C3: bf
C13: Disclaimer
M26: © Juni 2019
M27: IUC - Belastingdienst
M28: procurement.economics@belastingdienst.nl

Sheet Definitie Criteria
L11: Nummer: | M11: =+Menu!D11 -> 0
L12: Naam: | M12: =+Menu!D12 -> 0
C13: Gunningscriteria | E13: Toelichting
B15: criterium 1 | O15: Aantal Criteria: | P15: =9-((COUNTBLANK($C$15:$C$23))) -> 0
B16: criterium 2
B17: criterium 3
B18: criterium 4
B19: criterium 5
B20: criterium 6
B21: criterium 7
B22: criterium 8
B23: criterium 9

Sheet PrijsKwaliteit
C11: Verhouding prijs / kwaliteit | L11: Nummer: | M11: =+Menu!D11 -> 0
L12: Naam: | M12: =+Menu!D12 -> 0
D13: Ja
D14: Nee
C15: Criterium prijs actief ---------> | D15: Nee
C18: Criterium | D18: Percentage
C19: Prijs | D19: =Parameters!M20/100 -> 0.59
C20: Kwaliteit | D20: =1-(Parameters!M20)/100 -> 0.41
C23: Kwaliteit | D23: Prijs

Sheet Paarsgewijs vergelijk
C11: Paarsgewijs vergelijken
D14: =VLOOKUP(Parameters!$K$42,Parameters!$D$15:$E$23,2,FALSE) -> 0
D15: =VLOOKUP(Parameters!$K$42,Parameters!$D$25:$E$33,2,FALSE) -> 0
F17: =VLOOKUP(Parameters!$N$23,Parameters!$O$14:$P$30,2,FALSE) -> 5
F26: =VLOOKUP(Parameters!$N$24,Parameters!$O$14:$P$30,2,FALSE) -> 1/5
D27: =VLOOKUP(Parameters!$K$43,Parameters!$D$15:$E$23,2,FALSE) -> 0
D28: =VLOOKUP(Parameters!$K$43,Parameters!$D$25:$E$33,2,FALSE) -> 0

Sheet Einde Verdeling
M10: Nummer: | N10: =+Menu!D11 -> 0
M11: Naam: | N11: =+Menu!D12 -> 0

Sheet Parameters
B11: Parameters
B13: Aantal criteria | E13: =+'Definitie Criteria'!P15 -> 0 | K13: Kleuren | M13: zwart | R13: Output schuifbalk
K14: van | M14: wit | O14: 9 | P14: 9 | R14: 1 | S14: -9
B15: Criteria 1 | D15: 1 | E15: =+'Definitie Criteria'!$C$15 -> 0 | F15: Criteria 1 | K15: cel | O15: 8 | P15: 8 | R15: 2 | S15: -8
B16: Criteria 2 | D16: 2 | E16: =+'Definitie Criteria'!$C$16 -> 0 | F16: Criteria 2 | O16: 7 | P16: 7 | R16: 3 | S16: -7
B17: Criteria 3 | D17: 3 | E17: =+'Definitie Criteria'!$C$17 -> 0 | F17: Criteria 3 | O17: 6 | P17: 6 | R17: 4 | S17: -6
B18: Criteria 4 | D18: 4 | E18: =+'Definitie Criteria'!$C$18 -> 0 | F18: Criteria 4 | K18: Ja | O18: 5 | P18: 5 | R18: 5 | S18: -5
B19: Criteria 5 | D19: 5 | E19: =+'Definitie Criteria'!$C$19 -> 0 | F19: Criteria 5 | K19: Nee | O19: 4 | P19: 4 | R19: 6 | S19: -4
B20: Criteria 6 | D20: 6 | E20: =+'Definitie Criteria'!$C$20 -> 0 | F20: Criteria 6 | K20: Percentage | M20: 59 | O20: 3 | P20: 3 | R20: 7 | S20: -3
B21: Criteria 7 | D21: 7 | E21: =+'Definitie Criteria'!$C$21 -> 0 | F21: Criteria 7 | K21: Prijs voorgedefineerd: | M21: =IF(PrijsKwaliteit!D15="Ja",1,0) -> 0 | O21: 2 | P21: 2 | R21: 8 | S21: -2
B22: Criteria 8 | D22: 8 | E22: =+'Definitie Criteria'!$C$22 -> 0 | F22: Criteria 8 | O22: 1 | P22: 1 | R22: 9 | S22: 1
B23: Criteria 9 | D23: 9 | E23: =+'Definitie Criteria'!$C$23 -> 0 | F23: Criteria 9 | K23: Waardevergelijk | M23: =VLOOKUP(M25,$R$14:$S$30,2,FALSE) -> -5 | N23: =IF(xWaardevergelijk<0,xWaardevergelijk*-1,IF(xWaardevergelijk=0,1,1 / xWaardevergelijk)) -> 5 | O23: =1/2 -> 0.5 | P23: 1/2 | R23: 10 | S23: 2
N24: =1/N23 -> 0.2 | O24: =1/3 -> 0.3333333333 | P24: 1/3 | R24: 11 | S24: 3
B25: Criteria 1 | D25: 1 | E25: =+'Definitie Criteria'!E15:L15 -> 0 | K25: Waarde uit schuifbalk | M25: 5 | O25: =1/4 -> 0.25 | P25: 1/4 | R25: 12 | S25: 4
B26: Criteria 2 | D26: 2 | E26: =+'Definitie Criteria'!E16:L16 -> 0 | O26: =1/5 -> 0.2 | P26: 1/5 | R26: 13 | S26: 5
B27: Criteria 3 | D27: 3 | E27: =+'Definitie Criteria'!$E$17 -> 0 | O27: =1/6 -> 0.1666666667 | P27: 1/6 | R27: 14 | S27: 6
B28: Criteria 4 | D28: 4 | E28: =+'Definitie Criteria'!$E$18 -> 0 | O28: =1/7 -> 0.1428571429 | P28: 1/7 | R28: 15 | S28: 7
B29: Criteria 5 | D29: 5 | E29: =+'Definitie Criteria'!$E$19 -> 0 | O29: =1/8 -> 0.125 | P29: 1/8 | R29: 16 | S29: 8
B30: Criteria 6 | D30: 6 | E30: =+'Definitie Criteria'!$E$20 -> 0 | O30: =1/9 -> 0.1111111111 | P30: 1/9 | R30: 17 | S30: 9
B31: Criteria 7 | D31: 7 | E31: =+'Definitie Criteria'!$E$21 -> 0
B32: Criteria 8 | D32: 8 | E32: =+'Definitie Criteria'!$E$22 -> 0
B33: Criteria 9 | D33: 9 | E33: =+'Definitie Criteria'!$E$23 -> 0
B37: Paarsgewijs vergelijk
E39: Circel
B40: Aantal | C40: Aantal | E40: diagram
B41: criteria | C41: vergelijken | E41: voortgang | J41: Teller | K41: 7
B42: 2 | C42: 1 | J42: Rij | K42: 4
B43: 3 | C43: 3 | E43: Te gaan | F43: =+xNogtegaan ->  | G43: =G46-K41+1 ->  | J43: Kolom | K43: 5
B44: 4 | C44: 6 | E44: Gedaan | F44: =+xGedaan ->  | G44: =+G46-G43 ->  | J44: Max | K44: =E13 -> 0
B45: 5 | C45: 10 | J45: Maxtellr | K45: =VLOOKUP($E$13,$B$42:$C$49,2,FALSE) -> 
B46: 6 | C46: 15 | E46: Totaal | G46: =VLOOKUP(E13,B42:C49,2,FALSE) -> 
B47: 7 | C47: 21
B48: 8 | C48: 28
B49: 9 | C49: 36
B52: Matrix
C54: Crieteria 1 | D54: Crieteria 2 | E54: Crieteria 3 | F54: Crieteria 4 | G54: Crieteria 5 | H54: Crieteria 6 | I54: Crieteria 7 | J54: Crieteria 8 | K54: Crieteria 9
B55: Crieteria 1 | C55: 1 | D55: 5 | E55: 5 | F55: 5
B56: Crieteria 2 | C56: =1/D55 -> 0.2 | D56: 1 | E56: 5 | F56: 5
B57: Crieteria 3 | C57: =1/E55 -> 0.2 | D57: =1/E56 -> 0.2 | E57: 1 | F57: 5
B58: Crieteria 4 | C58: =1/F55 -> 0.2 | D58: =1/F56 -> 0.2 | E58: =1/F57 -> 0.2 | F58: 1
B59: Crieteria 5 | C59: =1/G55 ->  | D59: =1/G56 ->  | E59: =1/G57 ->  | F59: =1/G58 ->  | G59: 1
B60: Crieteria 6 | C60: =1/H55 ->  | D60: =1/H56 ->  | E60: =1/H57 ->  | F60: =1/H58 ->  | G60: =1/H59 ->  | H60: 1
B61: Crieteria 7 | C61: =1/I55 ->  | D61: =1/I56 ->  | E61: =1/I57 ->  | F61: =1/I58 ->  | G61: =1/I59 ->  | H61: =1/I60 ->  | I61: 1
B62: Crieteria 8 | C62: =1/J55 ->  | D62: =1/J56 ->  | E62: =1/J57 ->  | F62: =1/J58 ->  | G62: =1/J59 ->  | H62: =1/J60 ->  | I62: =1/J61 ->  | J62: 1
B63: Crieteria 9 | C63: =1/K55 ->  | D63: =1/K56 ->  | E63: =1/K57 ->  | F63: =1/K58 ->  | G63: =1/K59 ->  | H63: =1/K60 ->  | I63: =1/K61 ->  | J63: =1/K62 ->  | K63: 1
B67: Keuze
F69: Ouput | G69: 0
B70: 1 | C70: meer belangrijker | F70: 1 | G70: =VLOOKUP(F70,$B$70:$C$71,2,FALSE) -> meer belangrijker
B71: 2 | C71: minder belangrijker
B74: 1 | C74: ="even " & $G$70 -> even meer belangrijker
B75: 2 | C75: ="fractie " & $G$70 -> fractie meer belangrijker
B76: 3 | C76: ="licht " & $G$70 -> licht meer belangrijker
B77: 4 | C77: ="matig tot sterk " & $G$70 -> matig tot sterk meer belangrijker
B78: 5 | C78: ="Sterk " & $G$70 -> Sterk meer belangrijker
B79: 6 | C79: ="Sterk tot erg sterk " & $G$70 -> Sterk tot erg sterk meer belangrijker
B80: 7 | C80: ="erg sterk " & $G$70 -> erg sterk meer belangrijker
B81: 8 | C81: ="sterk tot extreem" & $G$70 -> sterk tot extreemmeer belangrijker
B82: 9 | C82: ="extreem " & $G$70 -> extreem meer belangrijker
H87: Genormaliseerde matrix
A89: Matrix 3 Criteria | B89: Matrix | D89: =+'Definitie Criteria'!$C$15 -> 0 | E89: =+'Definitie Criteria'!$C$16 -> 0 | F89: =+'Definitie Criteria'!$C$17 -> 0 | X89: Criterium | Z89: % | AB89: Product | AC89: Ratio
C90: =+'Definitie Criteria'!$C$15 -> 0 | D90: =+Parameters!C55 -> 1 | E90: =+Parameters!D55 -> 5 | F90: =+Parameters!E55 -> 5 | H90: =D90/SUM(D90:D92) -> 0.7142857143 | I90: =E90/SUM(E90:E92) -> 0.8064516129 | J90: =F90/SUM(F90:F92) -> 0.4545454545 | Y90: =+B90 -> 0 | Z90: =AVERAGE(H90:J90) -> 0.6584275939 | AB90: =MMULT(D90:F92,Z90:Z92) -> 2.366289624 | AC90: =AB90/Z90 -> 3.593849417
C91: =+'Definitie Criteria'!$C$16 -> 0 | D91: =+Parameters!C56 -> 0.2 | E91: =+Parameters!D56 -> 1 | F91: =+Parameters!E56 -> 5 | H91: =D91/SUM(D90:D92) -> 0.1428571429 | I91: =E91/SUM(E90:E92) -> 0.1612903226 | J91: =F91/SUM(F90:F92) -> 0.4545454545 | Y91: =+B91 -> 0 | Z91: =AVERAGE(H91:J91) -> 0.25289764 | AB91: 0.8279569892 | AC91: =AB91/Z91 -> 3.273881833
C92: =+'Definitie Criteria'!$C$17 -> 0 | D92: =+Parameters!C57 -> 0.2 | E92: =+Parameters!D57 -> 0.2 | F92: =+Parameters!E57 -> 1 | H92: =D92/SUM(D90:D92) -> 0.1428571429 | I92: =E92/SUM(E90:E92) -> 0.03225806452 | J92: =F92/SUM(F90:F92) -> 0.09090909091 | Y92: =+B92 -> 0 | Z92: =AVERAGE(H92:J92) -> 0.08867476609 | AB92: 0.2709398129 | AC92: =AB92/Z92 -> 3.055433071
AB93: CI= | AC93: =(AVERAGE(AC90:AC92)-3)/2 -> 0.1538607201 | AD93: CI/RI= | AE93: =AC93/0.58 -> 0.2652771037
A94: Matrix 3 Criteria (aangepast) | B94: Optimaal | D94: =+'Definitie Criteria'!$C$15 -> 0 | E94: =+'Definitie Criteria'!$C$16 -> 0 | F94: =+'Definitie Criteria'!$C$17 -> 0 | X94: Criterium | Z94: % | AB94: Product | AC94: Ratio
B95: =+'Definitie Criteria'!$C$15 -> 0 | C95: =+'Definitie Criteria'!$C$15 -> 0 | D95: =+C55 -> 1 | E95: =+D55 -> 5 | F95: =+E55 -> 5 | H95: =D95/SUM(D95:D97) -> 0.7142857143 | I95: =E95/SUM(E95:E97) -> 0.7142857143 | J95: =F95/SUM(F95:F97) -> 0.7142857143 | Y95: =+B95 -> 0 | Z95: =AVERAGE(H95:J95) -> 0.7142857143 | AB95: =MMULT(D95:F97,Z95:Z97) -> 2.142857143 | AC95: =AB95/Z95 -> 3
B96: =+'Definitie Criteria'!$C$16 -> 0 | C96: =+'Definitie Criteria'!$C$16 -> 0 | D96: =1/E95 -> 0.2 | E96: 1 | F96: =+F95/E95 -> 1 | H96: =D96/SUM(D95:D97) -> 0.1428571429 | I96: =E96/SUM(E95:E97) -> 0.1428571429 | J96: =F96/SUM(F95:F97) -> 0.1428571429 | Y96: =+B96 -> 0 | Z96: =AVERAGE(H96:J96) -> 0.1428571429 | AB96: 0.4285714286 | AC96: =AB96/Z96 -> 3
B97: =+'Definitie Criteria'!$C$17 -> 0 | C97: =+'Definitie Criteria'!$C$17 -> 0 | D97: =1/F95 -> 0.2 | E97: =1/F96 -> 1 | F97: 1 | H97: =D97/SUM(D95:D97) -> 0.1428571429 | I97: =E97/SUM(E95:E97) -> 0.1428571429 | J97: =F97/SUM(F95:F97) -> 0.1428571429 | Y97: =+B97 -> 0 | Z97: =AVERAGE(H97:J97) -> 0.1428571429 | AB97: 0.4285714286 | AC97: =AB97/Z97 -> 3
AB98: CI= | AC98: =(AVERAGE(AC95:AC97)-3)/2 -> 0 | AD98: CI/RI= | AE98: =AC98/0.58 -> 0
A99: Analyse 3 | B99: Analyse | D99: =+Parameters!$E$15 -> 0 | E99: =+Parameters!$E$16 -> 0 | F99: =+Parameters!$E$17 -> 0
C100: =+Parameters!$E$15 -> 0 | E100: =ABS((E95-E90)/E95) -> 0 | F100: =ABS((F95-F90)/F95) -> 0
C101: =+Parameters!$E$16 -> 0 | F101: =ABS((F96-F91)/F96) -> 4
C102: =+Parameters!$E$17 -> 0
I104: Genormaliseerde matrix
A105: Matrix 4 Criteria | B105: Matrix | D105: =+'Definitie Criteria'!$C$15 -> 0 | E105: =+'Definitie Criteria'!$C$16 -> 0 | F105: =+'Definitie Criteria'!$C$17 -> 0 | G105: =+'Definitie Criteria'!$C$18 -> 0 | X105: Criterium | Z105: % | AB105: Product | AC105: Ratio
C106: =+'Definitie Criteria'!$C$15 -> 0 | D106: =+Parameters!C55 -> 1 | E106: =+Parameters!D55 -> 5 | F106: =+Parameters!E55 -> 5 | G106: =+Parameters!F55 -> 5 | I106: =D106/SUM(D106:D109) -> 0.625 | J106: =E106/SUM(E106:E109) -> 0.78125 | K106: =F106/SUM(F106:F109) -> 0.4464285714 | L106: =G106/SUM(G106:G109) -> 0.3125 | Y106: =+B106 -> 0 | Z106: =AVERAGE(I106:L106) -> 0.5412946429 | AB106: =MMULT(D106:G109,Z106:Z109) -> 2.834821429 | AC106: =AB106/Z106 -> 5.237113402
C107: =+'Definitie Criteria'!$C$16 -> 0 | D107: =+Parameters!C56 -> 0.2 | E107: =+Parameters!D56 -> 1 | F107: =+Parameters!E56 -> 5 | G107: =+Parameters!F56 -> 5 | I107: =D107/SUM(D106:D109) -> 0.125 | J107: =E107/SUM(E106:E109) -> 0.15625 | K107: =F107/SUM(F106:F109) -> 0.4464285714 | L107: =G107/SUM(G106:G109) -> 0.3125 | Y107: =+B107 -> 0 | Z107: =AVERAGE(I107:L107) -> 0.2600446429 | AB107: 1.361607143 | AC107: =AB107/Z107 -> 5.236051502
C108: =+'Definitie Criteria'!$C$17 -> 0 | D108: =+Parameters!C57 -> 0.2 | E108: =+Parameters!D57 -> 0.2 | F108: =+Parameters!E57 -> 1 | G108: =+Parameters!F57 -> 5 | I108: =D108/SUM(D106:D109) -> 0.125 | J108: =E108/SUM(E106:E109) -> 0.03125 | K108: =F108/SUM(F106:F109) -> 0.08928571429 | L108: =G108/SUM(G106:G109) -> 0.3125 | Y108: =+B108 -> 0 | Z108: =AVERAGE(I108:L108) -> 0.1395089286 | AB108: 0.5955357143 | AC108: =AB108/Z108 -> 4.2688
C109: =+'Definitie Criteria'!$C$18 -> 0 | D109: =+Parameters!C58 -> 0.2 | E109: =+Parameters!D58 -> 0.2 | F109: =+Parameters!E58 -> 0.2 | G109: =+Parameters!F58 -> 1 | I109: =D109/SUM(D106:D109) -> 0.125 | J109: =E109/SUM(E106:E109) -> 0.03125 | K109: =F109/SUM(F106:F109) -> 0.01785714286 | L109: =G109/SUM(G106:G109) -> 0.0625 | Y109: =+B109 -> 0 | Z109: =AVERAGE(I109:L109) -> 0.05915178571 | AB109: 0.2473214286 | AC109: =AB109/Z109 -> 4.181132075
AB110: CI= | AC110: =(AVERAGE(AC106:AC109)-4)/3 -> 0.243591415 | AD110: CI/RI= | AE110: =AC110/0.9 -> 0.2706571277
A111: Matrix 4 Criteria (aangepast) | B111: Optimaal | D111: =+'Definitie Criteria'!$C$15 -> 0 | E111: =+'Definitie Criteria'!$C$16 -> 0 | F111: =+'Definitie Criteria'!$C$17 -> 0 | G111: =+'Definitie Criteria'!$C$18 -> 0 | X111: Criterium | Z111: % | AB111: Product | AC111: Ratio
B112: =+'Definitie Criteria'!$C$15 -> 0 | C112: =+'Definitie Criteria'!$C$15 -> 0 | D112: =+C55 -> 1 | E112: =+D55 -> 5 | F112: =+E55 -> 5 | G112: =+F55 -> 5 | I112: =D112/SUM(D112:D115) -> 0.625 | J112: =E112/SUM(E112:E115) -> 0.625 | K112: =F112/SUM(F112:F115) -> 0.625 | L112: =G112/SUM(G112:G115) -> 0.625 | Y112: =+B112 -> 0 | Z112: =AVERAGE(I112:L112) -> 0.625 | AB112: =MMULT(D112:G115,Z112:Z115) -> 2.5 | AC112: =AB112/Z112 -> 4
B113: =+'Definitie Criteria'!$C$16 -> 0 | C113: =+'Definitie Criteria'!$C$16 -> 0 | D113: =1/E112 -> 0.2 | E113: 1 | F113: =+F112/E112 -> 1 | G113: =+G112/E112 -> 1 | I113: =D113/SUM(D112:D115) -> 0.125 | J113: =E113/SUM(E112:E115) -> 0.125 | K113: =F113/SUM(F112:F115) -> 0.125 | L113: =G113/SUM(G112:G115) -> 0.125 | Y113: =+B113 -> 0 | Z113: =AVERAGE(I113:L113) -> 0.125 | AB113: 0.5 | AC113: =AB113/Z113 -> 4
B114: =+'Definitie Criteria'!$C$17 -> 0 | C114: =+'Definitie Criteria'!$C$17 -> 0 | D114: =1/F112 -> 0.2 | E114: =1/F113 -> 1 | F114: 1 | G114: =+G113/F113 -> 1 | I114: =D114/SUM(D112:D115) -> 0.125 | J114: =E114/SUM(E112:E115) -> 0.125 | K114: =F114/SUM(F112:F115) -> 0.125 | L114: =G114/SUM(G112:G115) -> 0.125 | Y114: =+B114 -> 0 | Z114: =AVERAGE(I114:L114) -> 0.125 | AB114: 0.5 | AC114: =AB114/Z114 -> 4
B115: =+'Definitie Criteria'!$C$18 -> 0 | C115: =+'Definitie Criteria'!$C$18 -> 0 | D115: =1/G112 -> 0.2 | E115: =1/G113 -> 1 | F115: =1/G114 -> 1 | G115: 1 | I115: =D115/SUM(D112:D115) -> 0.125 | J115: =E115/SUM(E112:E115) -> 0.125 | K115: =F115/SUM(F112:F115) -> 0.125 | L115: =G115/SUM(G112:G115) -> 0.125 | Y115: =+B115 -> 0 | Z115: =AVERAGE(I115:L115) -> 0.125 | AB115: 0.5 | AC115: =AB115/Z115 -> 4
AB116: CI= | AC116: =(AVERAGE(AC112:AC115)-4)/3 -> 0 | AD116: CI/RI= | AE116: =AC116/0.9 -> 0
A117: Analyse 4 | B117: Analyse | D117: =+Parameters!$E$15 -> 0 | E117: =+Parameters!$E$16 -> 0 | F117: =+Parameters!$E$17 -> 0 | G117: =+Parameters!$E$18 -> 0
C118: =+Parameters!$E$15 -> 0 | E118: =ABS((E112-E106)/E112) -> 0 | F118: =ABS((F112-F106)/F112) -> 0 | G118: =ABS((G112-G106)/G112) -> 0
C119: =+Parameters!$E$16 -> 0 | F119: =ABS((F113-F107)/F113) -> 4 | G119: =ABS((G113-G107)/G113) -> 4
C120: =+Parameters!$E$17 -> 0 | G120: =ABS((G114-G108)/G114) -> 4
C121: =+Parameters!$E$18 -> 0
J123: Genormaliseerde matrix
A124: Matrix 5 Criteria | B124: Matrix | D124: =+'Definitie Criteria'!$C$15 -> 0 | E124: =+'Definitie Criteria'!$C$16 -> 0 | F124: =+'Definitie Criteria'!$C$17 -> 0 | G124: =+'Definitie Criteria'!$C$18 -> 0 | H124: =+'Definitie Criteria'!$C$19 -> 0 | X124: Criterium | Z124: % | AB124: Product | AC124: Ratio
C125: =+'Definitie Criteria'!$C$15 -> 0 | D125: =+Parameters!C55 -> 1 | E125: =+Parameters!D55 -> 5 | F125: =+Parameters!E55 -> 5 | G125: =+Parameters!F55 -> 5 | H125: =+Parameters!G55 -> 0 | J125: =D125/SUM(D125:D129) ->  | K125: =E125/SUM(E125:E129) ->  | L125: =F125/SUM(F125:F129) ->  | M125: =G125/SUM(G125:G129) ->  | N125: =H125/SUM(H125:H129) -> 0 | Y125: =+B125 -> 0 | Z125: =AVERAGE(J125:N125) ->  | AB125: =MMULT(D125:H129,Z125:Z129) ->  | AC125: =AB125/Z125 -> 
C126: =+'Definitie Criteria'!$C$16 -> 0 | D126: =+Parameters!C56 -> 0.2 | E126: =+Parameters!D56 -> 1 | F126: =+Parameters!E56 -> 5 | G126: =+Parameters!F56 -> 5 | H126: =+Parameters!G56 -> 0 | J126: =D126/SUM(D125:D129) ->  | K126: =E126/SUM(E125:E129) ->  | L126: =F126/SUM(F125:F129) ->  | M126: =G126/SUM(G125:G129) ->  | N126: =H126/SUM(H125:H129) -> 0 | Y126: =+B126 -> 0 | Z126: =AVERAGE(J126:N126) ->  | AC126: =AB126/Z126 -> 
C127: =+'Definitie Criteria'!$C$17 -> 0 | D127: =+Parameters!C57 -> 0.2 | E127: =+Parameters!D57 -> 0.2 | F127: =+Parameters!E57 -> 1 | G127: =+Parameters!F57 -> 5 | H127: =+Parameters!G57 -> 0 | J127: =D127/SUM(D125:D129) ->  | K127: =E127/SUM(E125:E129) ->  | L127: =F127/SUM(F125:F129) ->  | M127: =G127/SUM(G125:G129) ->  | N127: =H127/SUM(H125:H129) -> 0 | Y127: =+B127 -> 0 | Z127: =AVERAGE(J127:N127) ->  | AC127: =AB127/Z127 -> 
C128: =+'Definitie Criteria'!$C$18 -> 0 | D128: =+Parameters!C58 -> 0.2 | E128: =+Parameters!D58 -> 0.2 | F128: =+Parameters!E58 -> 0.2 | G128: =+Parameters!F58 -> 1 | H128: =+Parameters!G58 -> 0 | J128: =D128/SUM(D125:D129) ->  | K128: =E128/SUM(E125:E129) ->  | L128: =F128/SUM(F125:F129) ->  | M128: =G128/SUM(G125:G129) ->  | N128: =H128/SUM(H125:H129) -> 0 | Y128: =+B128 -> 0 | Z128: =AVERAGE(J128:N128) ->  | AC128: =AB128/Z128 -> 
C129: =+'Definitie Criteria'!$C$19 -> 0 | D129: =+Parameters!C59 ->  | E129: =+Parameters!D59 ->  | F129: =+Parameters!E59 ->  | G129: =+Parameters!F59 ->  | H129: =+Parameters!G59 -> 1 | J129: =D129/SUM(D125:D129) ->  | K129: =E129/SUM(E125:E129) ->  | L129: =F129/SUM(F125:F129) ->  | M129: =G129/SUM(G125:G129) ->  | N129: =H129/SUM(H125:H129) -> 1 | Y129: =+B129 -> 0 | Z129: =AVERAGE(J129:N129) ->  | AC129: =AB129/Z129 -> 
AB130: CI= | AC130: =(AVERAGE(AC125:AC129)-5)/4 ->  | AD130: CI/RI= | AE130: =AC130/1.12 -> 
A131: Matrix 5 Criteria (aangepast) | B131: Optimaal | D131: =+'Definitie Criteria'!$C$15 -> 0 | E131: =+'Definitie Criteria'!$C$16 -> 0 | F131: =+'Definitie Criteria'!$C$17 -> 0 | G131: =+'Definitie Criteria'!$C$18 -> 0 | H131: =+'Definitie Criteria'!$C$19 -> 0 | X131: Criterium | Z131: % | AB131: Product | AC131: Ratio
B132: =+'Definitie Criteria'!$C$15 -> 0 | C132: =+'Definitie Criteria'!$C$15 -> 0 | D132: =+C55 -> 1 | E132: =+D55 -> 5 | F132: =+E55 -> 5 | G132: =+F55 -> 5 | H132: =+G55 -> 0 | J132: =D132/SUM(D132:D136) ->  | K132: =E132/SUM(E132:E136) ->  | L132: =F132/SUM(F132:F136) ->  | M132: =G132/SUM(G132:G136) ->  | N132: =H132/SUM(H132:H136) -> 0 | Y132: =+B132 -> 0 | Z132: =AVERAGE(J132:N132) ->  | AB132: =MMULT(D132:H136,Z132:Z136) ->  | AC132: =AB132/Z132 -> 
B133: =+'Definitie Criteria'!$C$16 -> 0 | C133: =+'Definitie Criteria'!$C$16 -> 0 | D133: =1/E132 -> 0.2 | E133: 1 | F133: =+F132/E132 -> 1 | G133: =+G132/E132 -> 1 | H133: =+H132/E132 -> 0 | J133: =D133/SUM(D132:D136) ->  | K133: =E133/SUM(E132:E136) ->  | L133: =F133/SUM(F132:F136) ->  | M133: =G133/SUM(G132:G136) ->  | N133: =H133/SUM(H132:H136) -> 0 | Y133: =+B133 -> 0 | Z133: =AVERAGE(J133:N133) ->  | AC133: =AB133/Z133 -> 
B134: =+'Definitie Criteria'!$C$17 -> 0 | C134: =+'Definitie Criteria'!$C$17 -> 0 | D134: =1/F132 -> 0.2 | E134: =1/F133 -> 1 | F134: 1 | G134: =+G133/F133 -> 1 | H134: =+H133/F133 -> 0 | J134: =D134/SUM(D132:D136) ->  | K134: =E134/SUM(E132:E136) ->  | L134: =F134/SUM(F132:F136) ->  | M134: =G134/SUM(G132:G136) ->  | N134: =H134/SUM(H132:H136) -> 0 | Y134: =+B134 -> 0 | Z134: =AVERAGE(J134:N134) ->  | AC134: =AB134/Z134 -> 
B135: =+'Definitie Criteria'!$C$18 -> 0 | C135: =+'Definitie Criteria'!$C$18 -> 0 | D135: =1/G132 -> 0.2 | E135: =1/G133 -> 1 | F135: =1/G134 -> 1 | G135: 1 | H135: =+H134/G134 -> 0 | J135: =D135/SUM(D132:D136) ->  | K135: =E135/SUM(E132:E136) ->  | L135: =F135/SUM(F132:F136) ->  | M135: =G135/SUM(G132:G136) ->  | N135: =H135/SUM(H132:H136) -> 0 | Y135: =+B135 -> 0 | Z135: =AVERAGE(J135:N135) ->  | AC135: =AB135/Z135 -> 
B136: =+'Definitie Criteria'!$C$19 -> 0 | C136: =+'Definitie Criteria'!$C$19 -> 0 | D136: =1/H132 ->  | E136: =1/H133 ->  | F136: =1/H134 ->  | G136: =1/H135 ->  | H136: 1 | J136: =D136/SUM(D132:D136) ->  | K136: =E136/SUM(E132:E136) ->  | L136: =F136/SUM(F132:F136) ->  | M136: =G136/SUM(G132:G136) ->  | N136: =H136/SUM(H132:H136) -> 1 | Y136: =+B136 -> 0 | Z136: =AVERAGE(J136:N136) ->  | AC136: =AB136/Z136 -> 
AB137: CI= | AC137: =(AVERAGE(AC132:AC136)-5)/4 ->  | AD137: CI/RI= | AE137: =AC137/1.12 -> 
A138: Analyse 5 | B138: Analyse | D138: =+Parameters!$E$15 -> 0 | E138: =+Parameters!$E$16 -> 0 | F138: =+Parameters!$E$17 -> 0 | G138: =+Parameters!$E$18 -> 0 | H138: =+Parameters!$E$19 -> 0
C139: =+Parameters!$E$15 -> 0 | E139: =ABS((E132-E125)/E132) -> 0 | F139: =ABS((F132-F125)/F132) -> 0 | G139: =ABS((G132-G125)/G132) -> 0 | H139: =ABS((H132-H125)/H132) -> 
C140: =+Parameters!$E$16 -> 0 | F140: =ABS((F133-F126)/F133) -> 4 | G140: =ABS((G133-G126)/G133) -> 4 | H140: =ABS((H133-H126)/H133) -> 
C141: =+Parameters!$E$17 -> 0 | G141: =ABS((G134-G127)/G134) -> 4 | H141: =ABS((H134-H127)/H134) -> 
C142: =+Parameters!$E$18 -> 0 | H142: =ABS((H135-H128)/H135) -> 
C143: =+Parameters!$E$19 -> 0
A146: Matrix 6 Criteria | B146: Matrix | D146: =+'Definitie Criteria'!$C$15 -> 0 | E146: =+'Definitie Criteria'!$C$16 -> 0 | F146: =+'Definitie Criteria'!$C$17 -> 0 | G146: =+'Definitie Criteria'!$C$18 -> 0 | H146: =+'Definitie Criteria'!$C$19 -> 0 | I146: =+'Definitie Criteria'!$C$20 -> 0 | X146: Criterium | Z146: % | AB146: Product | AC146: Ratio
C147: =+'Definitie Criteria'!$C$15 -> 0 | D147: =+Parameters!C55 -> 1 | E147: =+Parameters!D55 -> 5 | F147: =+Parameters!E55 -> 5 | G147: =+Parameters!F55 -> 5 | H147: =+Parameters!G55 -> 0 | I147: =+Parameters!H55 -> 0 | K147: =D147/SUM(D147:D152) ->  | P147: 0 | Y147: =+B147 -> 0 | Z147: =AVERAGE(K147:P147) ->  | AB147: =MMULT(D147:I152,Z147:Z152) ->  | AC147: =AB147/Z147 -> 
C148: =+'Definitie Criteria'!$C$16 -> 0 | D148: =+Parameters!C56 -> 0.2 | E148: =+Parameters!D56 -> 1 | F148: =+Parameters!E56 -> 5 | G148: =+Parameters!F56 -> 5 | H148: =+Parameters!G56 -> 0 | I148: =+Parameters!H56 -> 0 | K148: =D148/SUM(D147:D152) ->  | P148: 0 | Y148: 0
C149: =+'Definitie Criteria'!$C$17 -> 0 | D149: =+Parameters!C57 -> 0.2 | E149: =+Parameters!D57 -> 0.2 | F149: =+Parameters!E57 -> 1 | G149: =+Parameters!F57 -> 5 | H149: =+Parameters!G57 -> 0 | I149: =+Parameters!H57 -> 0 | K149: =D149/SUM(D147:D152) ->  | P149: 0 | Y149: 0
C150: =+'Definitie Criteria'!$C$18 -> 0 | D150: =+Parameters!C58 -> 0.2 | E150: =+Parameters!D58 -> 0.2 | F150: =+Parameters!E58 -> 0.2 | G150: =+Parameters!F58 -> 1 | H150: =+Parameters!G58 -> 0 | I150: =+Parameters!H58 -> 0 | K150: =D150/SUM(D147:D152) ->  | P150: 0 | Y150: 0
C151: =+'Definitie Criteria'!$C$19 -> 0 | D151: =+Parameters!C59 ->  | E151: =+Parameters!D59 ->  | F151: =+Parameters!E59 ->  | G151: =+Parameters!F59 ->  | H151: =+Parameters!G59 -> 1 | I151: =+Parameters!H59 -> 0 | K151: =D151/SUM(D147:D152) ->  | P151: 0 | Y151: 0
C152: =+'Definitie Criteria'!$C$20 -> 0 | D152: =+Parameters!C60 ->  | E152: =+Parameters!D60 ->  | F152: =+Parameters!E60 ->  | G152: =+Parameters!F60 ->  | H152: =+Parameters!G60 ->  | I152: =+Parameters!H60 -> 1 | K152: =D152/SUM(D147:D152) ->  | P152: 1 | Y152: 0
AB153: CI= | AC153: =(AVERAGE(AC147:AC152)-6)/5 ->  | AD153: CI/RI= | AE153: =AC153/1.24 -> 
A154: Matrix 6 Criteria (aangepast) | B154: Optimaal | D154: =+'Definitie Criteria'!$C$15 -> 0 | E154: =+'Definitie Criteria'!$C$16 -> 0 | F154: =+'Definitie Criteria'!$C$17 -> 0 | G154: =+'Definitie Criteria'!$C$18 -> 0 | H154: =+'Definitie Criteria'!$C$19 -> 0 | I154: =+'Definitie Criteria'!$C$20 -> 0 | X154: Criterium | Z154: % | AB154: Product | AC154: Ratio
B155: =+'Definitie Criteria'!$C$15 -> 0 | C155: =+'Definitie Criteria'!$C$15 -> 0 | D155: =+C55 -> 1 | E155: 5 | F155: 5 | G155: 5 | H155: 0 | I155: 0 | K155: =D155/SUM(D155:D160) ->  | Y155: =+B155 -> 0 | Z155: =AVERAGE(K155:P155) ->  | AB155: =MMULT(D155:I160,Z155:Z160) ->  | AC155: =AB155/Z155 -> 
B156: =+'Definitie Criteria'!$C$16 -> 0 | C156: =+'Definitie Criteria'!$C$16 -> 0 | D156: =1/E155 -> 0.2 | E156: 1 | F156: =+F155/E155 -> 1 | G156: =+G155/E155 -> 1 | H156: =+H155/E155 -> 0 | I156: =+I155/E155 -> 0 | K156: =D156/SUM(D155:D160) ->  | Y156: 0
B157: =+'Definitie Criteria'!$C$17 -> 0 | C157: =+'Definitie Criteria'!$C$17 -> 0 | D157: =1/F155 -> 0.2 | E157: =1/F156 -> 1 | F157: 1 | G157: =+G156/F156 -> 1 | H157: =+H156/F156 -> 0 | I157: =+I156/F156 -> 0 | K157: =D157/SUM(D155:D160) ->  | Y157: 0
B158: =+'Definitie Criteria'!$C$18 -> 0 | C158: =+'Definitie Criteria'!$C$18 -> 0 | D158: =1/G155 -> 0.2 | E158: =1/G156 -> 1 | F158: =1/G157 -> 1 | G158: 1 | H158: =+H157/G157 -> 0 | I158: =+I157/G157 -> 0 | K158: =D158/SUM(D155:D160) ->  | Y158: 0
B159: =+'Definitie Criteria'!$C$19 -> 0 | C159: =+'Definitie Criteria'!$C$19 -> 0 | D159: =1/H155 ->  | E159: =1/H156 ->  | F159: =1/H157 ->  | G159: =1/H158 ->  | H159: 1 | I159: =+I158/H158 ->  | K159: =D159/SUM(D155:D160) ->  | Y159: 0
B160: =+'Definitie Criteria'!$C$20 -> 0 | C160: =+'Definitie Criteria'!$C$20 -> 0 | D160: =1/I155 ->  | E160: =1/I156 ->  | F160: =1/I157 ->  | G160: =1/I158 ->  | H160: =1/I159 ->  | I160: 1 | K160: =D160/SUM(D155:D160) ->  | Y160: 0
AB161: CI= | AC161: =(AVERAGE(AC155:AC160)-6)/5 ->  | AD161: CI/RI= | AE161: =AC161/1.24 -> 
A162: Analyse 6 | B162: Analyse | D162: =+Parameters!$E$15 -> 0 | E162: =+Parameters!$E$16 -> 0 | F162: =+Parameters!$E$17 -> 0 | G162: =+Parameters!$E$18 -> 0 | H162: =+Parameters!$E$19 -> 0 | I162: =+Parameters!$E$20 -> 0
C163: =+Parameters!$E$15 -> 0 | E163: =ABS((E155-E147)/E155) -> 0 | F163: =ABS((F155-F147)/F155) -> 0 | G163: =ABS((G155-G147)/G155) -> 0 | H163: =ABS((H155-H147)/H155) ->  | I163: =ABS((I155-I147)/I155) -> 
C164: =+Parameters!$E$16 -> 0 | F164: =ABS((F156-F148)/F156) -> 4 | G164: =ABS((G156-G148)/G156) -> 4 | H164: =ABS((H156-H148)/H156) ->  | I164: =ABS((I156-I148)/I156) -> 
C165: =+Parameters!$E$17 -> 0 | G165: =ABS((G157-G149)/G157) -> 4 | H165: =ABS((H157-H149)/H157) ->  | I165: =ABS((I157-I149)/I157) -> 
C166: =+Parameters!$E$18 -> 0 | H166: =ABS((H158-H150)/H158) ->  | I166: =ABS((I158-I150)/I158) -> 
C167: =+Parameters!$E$19 -> 0 | I167: =ABS((I159-I151)/I159) -> 
C168: =+Parameters!$E$20 -> 0
A171: Matrix 7 Criteria | B171: Matrix | D171: =+'Definitie Criteria'!$C$15 -> 0 | E171: =+'Definitie Criteria'!$C$16 -> 0 | F171: =+'Definitie Criteria'!$C$17 -> 0 | G171: =+'Definitie Criteria'!$C$18 -> 0 | H171: =+'Definitie Criteria'!$C$19 -> 0 | I171: =+'Definitie Criteria'!$C$20 -> 0 | J171: =+'Definitie Criteria'!$C$21 -> 0 | X171: Criterium | Z171: % | AB171: Product | AC171: Ratio
C172: =+'Definitie Criteria'!$C$15 -> 0 | D172: =+Parameters!C55 -> 1 | E172: =+Parameters!D55 -> 5 | F172: =+Parameters!E55 -> 5 | G172: =+Parameters!F55 -> 5 | H172: =+Parameters!G55 -> 0 | I172: =+Parameters!H55 -> 0 | J172: =+Parameters!I55 -> 0 | L172: =D172/SUM(D172:D178) ->  | R172: 0 | Y172: =+B172 -> 0 | Z172: =AVERAGE(L172:R172) ->  | AB172: =MMULT(D172:J178,Z172:Z178) ->  | AC172: =AB172/Z172 -> 
C173: =+'Definitie Criteria'!$C$16 -> 0 | D173: =+Parameters!C56 -> 0.2 | E173: =+Parameters!D56 -> 1 | F173: =+Parameters!E56 -> 5 | G173: =+Parameters!F56 -> 5 | H173: =+Parameters!G56 -> 0 | I173: =+Parameters!H56 -> 0 | J173: =+Parameters!I56 -> 0 | L173: =D173/SUM(D172:D178) ->  | R173: 0 | Y173: 0
C174: =+'Definitie Criteria'!$C$17 -> 0 | D174: =+Parameters!C57 -> 0.2 | E174: =+Parameters!D57 -> 0.2 | F174: =+Parameters!E57 -> 1 | G174: =+Parameters!F57 -> 5 | H174: =+Parameters!G57 -> 0 | I174: =+Parameters!H57 -> 0 | J174: =+Parameters!I57 -> 0 | L174: =D174/SUM(D172:D178) ->  | R174: 0 | Y174: 0
C175: =+'Definitie Criteria'!$C$18 -> 0 | D175: =+Parameters!C58 -> 0.2 | E175: =+Parameters!D58 -> 0.2 | F175: =+Parameters!E58 -> 0.2 | G175: =+Parameters!F58 -> 1 | H175: =+Parameters!G58 -> 0 | I175: =+Parameters!H58 -> 0 | J175: =+Parameters!I58 -> 0 | L175: =D175/SUM(D172:D178) ->  | R175: 0 | Y175: 0
C176: =+'Definitie Criteria'!$C$19 -> 0 | D176: =+Parameters!C59 ->  | E176: =+Parameters!D59 ->  | F176: =+Parameters!E59 ->  | G176: =+Parameters!F59 ->  | H176: =+Parameters!G59 -> 1 | I176: =+Parameters!H59 -> 0 | J176: =+Parameters!I59 -> 0 | L176: =D176/SUM(D172:D178) ->  | R176: 0 | Y176: 0
C177: =+'Definitie Criteria'!$C$20 -> 0 | D177: =+Parameters!C60 ->  | E177: =+Parameters!D60 ->  | F177: =+Parameters!E60 ->  | G177: =+Parameters!F60 ->  | H177: =+Parameters!G60 ->  | I177: =+Parameters!H60 -> 1 | J177: =+Parameters!I60 -> 0 | L177: =D177/SUM(D172:D178) ->  | R177: 0 | Y177: 0
C178: =+'Definitie Criteria'!$C$21 -> 0 | D178: =+Parameters!C61 ->  | E178: =+Parameters!D61 ->  | F178: =+Parameters!E61 ->  | G178: =+Parameters!F61 ->  | H178: =+Parameters!G61 ->  | I178: =+Parameters!H61 ->  | J178: =+Parameters!I61 -> 1 | L178: =D178/SUM(D172:D178) ->  | R178: 1 | Y178: 0
AB179: CI= | AC179: =(AVERAGE(AC172:AC178)-7)/6 ->  | AD179: CI/RI= | AE179: =AC179/1.32 -> 
A180: Matrix 7 Criteria (aangepast) | B180: Optimaal | D180: =+'Definitie Criteria'!$C$15 -> 0 | E180: =+'Definitie Criteria'!$C$16 -> 0 | F180: =+'Definitie Criteria'!$C$17 -> 0 | G180: =+'Definitie Criteria'!$C$18 -> 0 | H180: =+'Definitie Criteria'!$C$19 -> 0 | I180: =+'Definitie Criteria'!$C$20 -> 0 | J180: =+'Definitie Criteria'!$C$21 -> 0 | X180: Criterium | Z180: % | AB180: Product | AC180: Ratio
B181: =+'Definitie Criteria'!$C$15 -> 0 | C181: =+'Definitie Criteria'!$C$15 -> 0 | D181: =+C55 -> 1 | E181: 5 | F181: 5 | G181: 5 | H181: 0 | I181: 0 | J181: 0 | L181: =D181/SUM(D181:D187) ->  | Y181: =+B181 -> 0 | Z181: =AVERAGE(L181:R181) ->  | AB181: =MMULT(D181:J187,Z181:Z187) ->  | AC181: =AB181/Z181 -> 
B182: =+'Definitie Criteria'!$C$16 -> 0 | C182: =+'Definitie Criteria'!$C$16 -> 0 | D182: =1/E181 -> 0.2 | E182: 1 | F182: =+F181/E181 -> 1 | G182: =+G181/E181 -> 1 | H182: =+H181/E181 -> 0 | I182: =+I181/E181 -> 0 | J182: =+J181/E181 -> 0 | L182: =D182/SUM(D181:D187) ->  | Y182: 0
B183: =+'Definitie Criteria'!$C$17 -> 0 | C183: =+'Definitie Criteria'!$C$17 -> 0 | D183: =1/F181 -> 0.2 | E183: =1/F182 -> 1 | F183: 1 | G183: =+G182/F182 -> 1 | H183: =+H182/F182 -> 0 | I183: =+I182/F182 -> 0 | J183: =+J182/F182 -> 0 | L183: =D183/SUM(D181:D187) ->  | Y183: 0
B184: =+'Definitie Criteria'!$C$18 -> 0 | C184: =+'Definitie Criteria'!$C$18 -> 0 | D184: =1/G181 -> 0.2 | E184: =1/G182 -> 1 | F184: =1/G183 -> 1 | G184: 1 | H184: =+H183/G183 -> 0 | I184: =+I183/G183 -> 0 | J184: =+J183/G183 -> 0 | L184: =D184/SUM(D181:D187) ->  | Y184: 0
B185: =+'Definitie Criteria'!$C$19 -> 0 | C185: =+'Definitie Criteria'!$C$19 -> 0 | D185: =1/H181 ->  | E185: =1/H182 ->  | F185: =1/H183 ->  | G185: =1/H184 ->  | H185: 1 | I185: =+I184/H184 ->  | J185: =+J184/H184 ->  | L185: =D185/SUM(D181:D187) ->  | Y185: 0
B186: =+'Definitie Criteria'!$C$20 -> 0 | C186: =+'Definitie Criteria'!$C$20 -> 0 | D186: =1/I181 ->  | E186: =1/I182 ->  | F186: =1/I183 ->  | G186: =1/I184 ->  | H186: =1/I185 ->  | I186: 1 | J186: =+J185/I185 ->  | L186: =D186/SUM(D181:D187) ->  | Y186: 0
B187: =+'Definitie Criteria'!$C$21 -> 0 | C187: =+'Definitie Criteria'!$C$21 -> 0 | D187: =1/J181 ->  | E187: =1/J182 ->  | F187: =1/J183 ->  | G187: =1/J184 ->  | H187: =1/J185 ->  | I187: =1/J186 ->  | J187: 1 | L187: =D187/SUM(D181:D187) ->  | Y187: 0
AB188: CI= | AC188: =(AVERAGE(AC181:AC187)-7)/6 ->  | AD188: CI/RI= | AE188: =AC188/1.32 -> 
A189: Analyse 7 | B189: Analyse | D189: =+Parameters!$E$15 -> 0 | E189: =+Parameters!$E$16 -> 0 | F189: =+Parameters!$E$17 -> 0 | G189: =+Parameters!$E$18 -> 0 | H189: =+Parameters!$E$19 -> 0 | I189: =+Parameters!$E$20 -> 0 | J189: =+Parameters!$E$21 -> 0
C190: =+Parameters!$E$15 -> 0 | E190: =ABS((E181-E172)/E181) -> 0 | F190: 0 | G190: 0
C191: =+Parameters!$E$16 -> 0 | F191: =ABS((F182-F173)/F182) -> 4 | G191: =ABS((G182-G173)/G182) -> 4 | H191: =ABS((H182-H173)/H182) ->  | I191: =ABS((I182-I173)/I182) ->  | J191: =ABS((J182-J173)/J182) -> 
C192: =+Parameters!$E$17 -> 0 | G192: =ABS((G183-G174)/G183) -> 4 | H192: =ABS((H183-H174)/H183) ->  | I192: =ABS((I183-I174)/I183) ->  | J192: =ABS((J183-J174)/J183) -> 
C193: =+Parameters!$E$18 -> 0 | H193: =ABS((H184-H175)/H184) ->  | I193: =ABS((I184-I175)/I184) ->  | J193: =ABS((J184-J175)/J184) -> 
C194: =+Parameters!$E$19 -> 0 | I194: =ABS((I185-I176)/I185) ->  | J194: =ABS((J185-J176)/J185) -> 
C195: =+Parameters!$E$20 -> 0 | J195: =ABS((J186-J177)/J186) -> 
C196: =+Parameters!$E$21 -> 0
A199: Matrix 8 Criteria | B199: Matrix | D199: =+'Definitie Criteria'!$C$15 -> 0 | E199: =+'Definitie Criteria'!$C$16 -> 0 | F199: =+'Definitie Criteria'!$C$17 -> 0 | G199: =+'Definitie Criteria'!$C$18 -> 0 | H199: =+'Definitie Criteria'!$C$19 -> 0 | I199: =+'Definitie Criteria'!$C$20 -> 0 | J199: =+'Definitie Criteria'!$C$21 -> 0 | K199: =+'Definitie Criteria'!$C$22 -> 0 | X199: Criterium | Z199: % | AB199: Product | AC199: Ratio
C200: =+'Definitie Criteria'!$C$15 -> 0 | D200: =+Parameters!C55 -> 1 | E200: =+Parameters!D55 -> 5 | F200: =+Parameters!E55 -> 5 | G200: =+Parameters!F55 -> 5 | H200: =+Parameters!G55 -> 0 | I200: =+Parameters!H55 -> 0 | J200: =+Parameters!I55 -> 0 | K200: =+Parameters!J55 -> 0 | M200: =D200/SUM(D200:D207) ->  | T200: 0 | Y200: =+B200 -> 0 | Z200: =AVERAGE(M200:T200) ->  | AB200: =MMULT(D200:K207,Z200:Z207) ->  | AC200: =AB200/Z200 -> 
C201: =+'Definitie Criteria'!$C$16 -> 0 | D201: =+Parameters!C56 -> 0.2 | E201: =+Parameters!D56 -> 1 | F201: =+Parameters!E56 -> 5 | G201: =+Parameters!F56 -> 5 | H201: =+Parameters!G56 -> 0 | I201: =+Parameters!H56 -> 0 | J201: =+Parameters!I56 -> 0 | K201: =+Parameters!J56 -> 0 | M201: =D201/SUM(D200:D207) ->  | T201: 0 | Y201: 0 | Z201: =AVERAGE(M201:T201) ->  | AC201: =AB201/Z201 -> 
C202: =+'Definitie Criteria'!$C$17 -> 0 | D202: =+Parameters!C57 -> 0.2 | E202: =+Parameters!D57 -> 0.2 | F202: =+Parameters!E57 -> 1 | G202: =+Parameters!F57 -> 5 | H202: =+Parameters!G57 -> 0 | I202: =+Parameters!H57 -> 0 | J202: =+Parameters!I57 -> 0 | K202: =+Parameters!J57 -> 0 | M202: =D202/SUM(D200:D207) ->  | T202: 0 | Y202: 0
C203: =+'Definitie Criteria'!$C$18 -> 0 | D203: =+Parameters!C58 -> 0.2 | E203: =+Parameters!D58 -> 0.2 | F203: =+Parameters!E58 -> 0.2 | G203: =+Parameters!F58 -> 1 | H203: =+Parameters!G58 -> 0 | I203: =+Parameters!H58 -> 0 | J203: =+Parameters!I58 -> 0 | K203: =+Parameters!J58 -> 0 | M203: =D203/SUM(D200:D207) ->  | T203: 0 | Y203: 0
C204: =+'Definitie Criteria'!$C$19 -> 0 | D204: =+Parameters!C59 ->  | E204: =+Parameters!D59 ->  | F204: =+Parameters!E59 ->  | G204: =+Parameters!F59 ->  | H204: =+Parameters!G59 -> 1 | I204: =+Parameters!H59 -> 0 | J204: =+Parameters!I59 -> 0 | K204: =+Parameters!J59 -> 0 | M204: =D204/SUM(D200:D207) ->  | T204: 0 | Y204: 0
C205: =+'Definitie Criteria'!$C$20 -> 0 | D205: =+Parameters!C60 ->  | E205: =+Parameters!D60 ->  | F205: =+Parameters!E60 ->  | G205: =+Parameters!F60 ->  | H205: =+Parameters!G60 ->  | I205: =+Parameters!H60 -> 1 | J205: =+Parameters!I60 -> 0 | K205: =+Parameters!J60 -> 0 | M205: =D205/SUM(D200:D207) ->  | T205: 0 | Y205: 0
C206: =+'Definitie Criteria'!$C$21 -> 0 | D206: =+Parameters!C61 ->  | E206: =+Parameters!D61 ->  | F206: =+Parameters!E61 ->  | G206: =+Parameters!F61 ->  | H206: =+Parameters!G61 ->  | I206: =+Parameters!H61 ->  | J206: =+Parameters!I61 -> 1 | K206: =+Parameters!J61 -> 0 | M206: =D206/SUM(D200:D207) ->  | T206: 0 | Y206: 0
C207: =+'Definitie Criteria'!$C$22 -> 0 | D207: =+Parameters!C62 ->  | E207: =+Parameters!D62 ->  | F207: =+Parameters!E62 ->  | G207: =+Parameters!F62 ->  | H207: =+Parameters!G62 ->  | I207: =+Parameters!H62 ->  | J207: =+Parameters!I62 ->  | K207: =+Parameters!J62 -> 1 | M207: =D207/SUM(D200:D207) ->  | T207: 1 | Y207: 0
AB208: CI= | AC208: =(AVERAGE(AC200:AC207)-8)/7 ->  | AD208: CI/RI= | AE208: =AC208/1.41 -> 
A209: Matrix 8 Criteria (aangepast) | B209: Optimaal | D209: =+'Definitie Criteria'!$C$15 -> 0 | E209: =+'Definitie Criteria'!$C$16 -> 0 | F209: =+'Definitie Criteria'!$C$17 -> 0 | G209: =+'Definitie Criteria'!$C$18 -> 0 | H209: =+'Definitie Criteria'!$C$19 -> 0 | I209: =+'Definitie Criteria'!$C$20 -> 0 | J209: =+'Definitie Criteria'!$C$21 -> 0 | K209: =+'Definitie Criteria'!$C$22 -> 0 | X209: Criterium | Z209: % | AB209: Product | AC209: Ratio
B210: =+'Definitie Criteria'!$C$15 -> 0 | C210: =+'Definitie Criteria'!$C$15 -> 0 | D210: =+C55 -> 1 | E210: 5 | F210: 5 | G210: 5 | H210: 0 | I210: 0 | J210: 0 | K210: 0 | M210: =D210/SUM(D210:D217) ->  | Y210: =+B210 -> 0 | Z210: =AVERAGE(M210:T210) ->  | AB210: =MMULT(D210:K217,Z210:Z217) ->  | AC210: =AB210/Z210 -> 
B211: =+'Definitie Criteria'!$C$16 -> 0 | C211: =+'Definitie Criteria'!$C$16 -> 0 | D211: =1/E210 -> 0.2 | E211: 1 | F211: =+F210/E210 -> 1 | G211: =+G210/E210 -> 1 | H211: =+H210/E210 -> 0 | I211: =+I210/E210 -> 0 | J211: =+J210/E210 -> 0 | K211: =+K210/E210 -> 0 | M211: =D211/SUM(D210:D217) ->  | Y211: 0 | Z211: =AVERAGE(M211:T211) ->  | AC211: =AB211/Z211 -> 
B212: =+'Definitie Criteria'!$C$17 -> 0 | C212: =+'Definitie Criteria'!$C$17 -> 0 | D212: =1/F210 -> 0.2 | E212: =1/F211 -> 1 | F212: 1 | G212: =+G211/F211 -> 1 | H212: =+H211/F211 -> 0 | I212: =+I211/F211 -> 0 | J212: =+J211/F211 -> 0 | K212: =+K211/F211 -> 0 | M212: =D212/SUM(D210:D217) ->  | Y212: 0
B213: =+'Definitie Criteria'!$C$18 -> 0 | C213: =+'Definitie Criteria'!$C$18 -> 0 | D213: =1/G210 -> 0.2 | E213: =1/G211 -> 1 | F213: =1/G212 -> 1 | G213: 1 | H213: =+H212/G212 -> 0 | I213: =+I212/G212 -> 0 | J213: =+J212/G212 -> 0 | K213: =+K212/G212 -> 0 | M213: =D213/SUM(D210:D217) ->  | Y213: 0
B214: =+'Definitie Criteria'!$C$19 -> 0 | C214: =+'Definitie Criteria'!$C$19 -> 0 | D214: =1/H210 ->  | E214: =1/H211 ->  | F214: =1/H212 ->  | G214: =1/H213 ->  | H214: 1 | I214: =+I213/H213 ->  | J214: =+J213/H213 ->  | K214: =+K213/H213 ->  | M214: =D214/SUM(D210:D217) ->  | Y214: 0
B215: =+'Definitie Criteria'!$C$20 -> 0 | C215: =+'Definitie Criteria'!$C$20 -> 0 | D215: =1/I210 ->  | E215: =1/I211 ->  | F215: =1/I212 ->  | G215: =1/I213 ->  | H215: =1/I214 ->  | I215: 1 | J215: =+J214/I214 ->  | K215: =+K214/I214 ->  | M215: =D215/SUM(D210:D217) ->  | Y215: 0
B216: =+'Definitie Criteria'!$C$21 -> 0 | C216: =+'Definitie Criteria'!$C$21 -> 0 | D216: =1/J210 ->  | E216: =1/J211 ->  | F216: =1/J212 ->  | G216: =1/J213 ->  | H216: =1/J214 ->  | I216: =1/J215 ->  | J216: 1 | K216: =+K215/J215 ->  | M216: =D216/SUM(D210:D217) ->  | Y216: 0
B217: =+'Definitie Criteria'!$C$22 -> 0 | C217: =+'Definitie Criteria'!$C$22 -> 0 | D217: =1/K210 ->  | E217: =1/K211 ->  | F217: =1/K212 ->  | G217: =1/K213 ->  | H217: =1/K214 ->  | I217: =1/K215 ->  | J217: =1/K216 ->  | K217: 1 | M217: =D217/SUM(D210:D217) ->  | Y217: 0
AB218: CI= | AC218: =(AVERAGE(AC210:AC217)-8)/7 ->  | AD218: CI/RI= | AE218: =AC218/1.41 -> 
A219: Analyse 8 | B219: Analyse | D219: =+Parameters!$E$15 -> 0 | E219: =+Parameters!$E$16 -> 0 | F219: =+Parameters!$E$17 -> 0 | G219: =+Parameters!$E$18 -> 0 | H219: =+Parameters!$E$19 -> 0 | I219: =+Parameters!$E$20 -> 0 | J219: =+Parameters!$E$21 -> 0 | K219: =+Parameters!$E$22 -> 0
C220: =+Parameters!$E$15 -> 0 | E220: =ABS((E210-E200)/E210) -> 0 | F220: 0 | G220: 0
C221: =+Parameters!$E$16 -> 0 | F221: =ABS((F211-F201)/F211) -> 4 | G221: 4
C222: =+Parameters!$E$17 -> 0 | G222: =ABS((G212-G202)/G212) -> 4 | H222: =ABS((H212-H202)/H212) ->  | I222: =ABS((I212-I202)/I212) ->  | J222: =ABS((J212-J202)/J212) ->  | K222: =ABS((K212-K202)/K212) -> 
C223: =+Parameters!$E$18 -> 0 | H223: =ABS((H213-H203)/H213) ->  | I223: =ABS((I213-I203)/I213) ->  | J223: =ABS((J213-J203)/J213) ->  | K223: =ABS((K213-K203)/K213) -> 
C224: =+Parameters!$E$19 -> 0 | I224: =ABS((I214-I204)/I214) ->  | J224: =ABS((J214-J204)/J214) ->  | K224: =ABS((K214-K204)/K214) -> 
C225: =+Parameters!$E$20 -> 0 | J225: =ABS((J215-J205)/J215) ->  | K225: =ABS((K215-K205)/K215) -> 
C226: =+Parameters!$E$21 -> 0 | K226: =ABS((K216-K206)/K216) -> 
C227: =+Parameters!$E$22 -> 0
A230: Matrix 9 Criteria | B230: Matrix | D230: =+'Definitie Criteria'!$C$15 -> 0 | E230: =+'Definitie Criteria'!$C$16 -> 0 | F230: =+'Definitie Criteria'!$C$17 -> 0 | G230: =+'Definitie Criteria'!$C$18 -> 0 | H230: =+'Definitie Criteria'!$C$19 -> 0 | I230: =+'Definitie Criteria'!$C$20 -> 0 | J230: =+'Definitie Criteria'!$C$21 -> 0 | K230: =+'Definitie Criteria'!$C$22 -> 0 | L230: =+'Definitie Criteria'!$C$23 -> 0 | X230: Criterium | Z230: % | AB230: Product | AC230: Ratio
C231: =+'Definitie Criteria'!$C$15 -> 0 | D231: =+C55 -> 1 | E231: 5 | F231: 5 | G231: 5 | H231: 0 | I231: 0 | J231: 0 | K231: 0 | L231: 0 | N231: =D231/SUM(D231:D239) ->  | V231: 0 | Y231: =+B231 -> 0 | Z231: =AVERAGE(N231:V231) ->  | AB231: =MMULT(D231:L239,Z231:Z239) ->  | AC231: =AB231/Z231 -> 
C232: =+'Definitie Criteria'!$C$16 -> 0 | D232: =+C56 -> 0.2 | E232: 1 | F232: 5 | G232: 5 | H232: 0 | I232: 0 | J232: 0 | K232: 0 | L232: 0 | N232: =D232/SUM(D231:D239) ->  | V232: 0 | Y232: 0
C233: =+'Definitie Criteria'!$C$17 -> 0 | D233: =+C57 -> 0.2 | E233: 0.2 | F233: 1 | G233: 5 | H233: 0 | I233: 0 | J233: 0 | K233: 0 | L233: 0 | N233: =D233/SUM(D231:D239) ->  | V233: 0 | Y233: 0
C234: =+'Definitie Criteria'!$C$18 -> 0 | D234: =+C58 -> 0.2 | E234: 0.2 | F234: 0.2 | G234: 1 | H234: 0 | I234: 0 | J234: 0 | K234: 0 | L234: 0 | N234: =D234/SUM(D231:D239) ->  | V234: 0 | Y234: 0
C235: =+'Definitie Criteria'!$C$19 -> 0 | D235: =+C59 ->  | H235: 1 | I235: 0 | J235: 0 | K235: 0 | L235: 0 | N235: =D235/SUM(D231:D239) ->  | V235: 0 | Y235: 0
C236: =+'Definitie Criteria'!$C$20 -> 0 | D236: =+C60 ->  | I236: 1 | J236: 0 | K236: 0 | L236: 0 | N236: =D236/SUM(D231:D239) ->  | V236: 0 | Y236: 0
C237: =+'Definitie Criteria'!$C$21 -> 0 | D237: =+C61 ->  | J237: 1 | K237: 0 | L237: 0 | N237: =D237/SUM(D231:D239) ->  | V237: 0 | Y237: 0
C238: =+'Definitie Criteria'!$C$22 -> 0 | D238: =+C62 ->  | K238: 1 | L238: 0 | N238: =D238/SUM(D231:D239) ->  | V238: 0 | Y238: 0
C239: =+'Definitie Criteria'!$C$23 -> 0 | D239: =+C63 ->  | L239: 1 | N239: =D239/SUM(D231:D239) ->  | V239: 1 | Y239: 0
... 90 more rows

Sheet Grafiek
N10: Nummer: | O10: =+Menu!$D$11 -> 0
N11: Naam: | O11: =+Menu!$D$12 -> 0
D36: Criteria | E36: % | G36: CI/RI
D37: Prijs | E37: 0.59 | G37: 0.2706571277
D38: Criteria 1 | E38: 0.2219308036
D39: Criteria 2 | E39: 0.1066183036
D40: Criteria 3 | E40: 0.05719866071
D41: Criteria 4 | E41: 0.02425223214
B43: Matrix | D43: Criteria 1 | E43: Criteria 2 | F43: Criteria 3 | G43: Criteria 4
C44: Criteria 1 | D44: 1 | E44: 5 | F44: 5 | G44: 5
C45: Criteria 2 | D45: 0.2 | E45: 1 | F45: 5 | G45: 5
C46: Criteria 3 | D46: 0.2 | E46: 0.2 | F46: 1 | G46: 5
C47: Criteria 4 | D47: 0.2 | E47: 0.2 | F47: 0.2 | G47: 1

Sheet Analyse
N10: Nummer: | O10: =+Menu!$D$11 -> 0
N11: Naam: | O11: =+Menu!$D$12 -> 0
D36: Criteria | E36: % | G36: CI/RI | M36: Criteria | N36: % | P36: CI/RI
D37: Prijs | E37: 0.59 | G37: 0.2706571277 | M37: Prijs | N37: 0.59 | P37: 0
D38: Criteria 1 | E38: 0.2219308036 | M38: Criteria 1 | N38: 0.25625
D39: Criteria 2 | E39: 0.1066183036 | M39: Criteria 2 | N39: 0.05125
D40: Criteria 3 | E40: 0.05719866071 | M40: Criteria 3 | N40: 0.05125
D41: Criteria 4 | E41: 0.02425223214 | M41: Criteria 4 | N41: 0.05125
B43: Matrix | D43: Criteria 1 | E43: Criteria 2 | F43: Criteria 3 | G43: Criteria 4
C44: Criteria 1 | D44: 1 | E44: 5 | F44: 5 | G44: 5
C45: Criteria 2 | D45: 0.2 | E45: 1 | F45: 5 | G45: 5
C46: Criteria 3 | D46: 0.2 | E46: 0.2 | F46: 1 | G46: 5
C47: Criteria 4 | D47: 0.2 | E47: 0.2 | F47: 0.2 | G47: 1
B49: Optimaal | D49: Criteria 1 | E49: Criteria 2 | F49: Criteria 3 | G49: Criteria 4
B50: Criteria 1 | C50: Criteria 1 | D50: 1 | E50: 5 | F50: 5 | G50: 5
B51: Criteria 2 | C51: Criteria 2 | D51: 0.2 | E51: 1 | F51: 1 | G51: 1
B52: Criteria 3 | C52: Criteria 3 | D52: 0.2 | E52: 1 | F52: 1 | G52: 1
B53: Criteria 4 | C53: Criteria 4 | D53: 0.2 | E53: 1 | F53: 1 | G53: 1
B55: Analyse | D55: Criteria 1 | E55: Criteria 2 | F55: Criteria 3 | G55: Criteria 4
C56: Criteria 1 | E56: 0 | F56: 0 | G56: 0
C57: Criteria 2 | F57: 4 | G57: 4
C58: Criteria 3 | G58: 4
C59: Criteria 4
